Workbook

Sheet Лист1
A1: район | B1: Учреждение | C1: Количество детей по муниципальному заданию | J1: Общее количество сотрудников | K1: Кол-во сотрудников, имеющие высшую и первую кв.кактегории | M1: балл | O1: Количество педагогов, ставших победителями и призерами в профессиональных конкурсах | AC1: Выступление педагогов на семинарах, конференциях + публикации в газетах, журналах, СМИ | AQ1: Методические семинары, конференции, проводимые на базе учреждения | BE1: Участие ОО в конкурсах ОО | BM1: Грантовая активность (указывать количество конкурсов) | BQ1: Доступность и открытость | BV1: Безопасные условия (минус 1 балл за каждый случай) | BZ1: Обеспечение образовательного процесса | CG1: Результаты обучающихся | CU1: Городские мероприятия | DO1: Эффективность управления
C2: младший возраст (6/7-10 лет, 1-4 класс) | D2: доля | E2: средний возраст (11-15 лет, 5-9 класс) | F2: доля | G2: старший возраст (16-18 лет, 10-11 класс) | H2: доля | I2: общее количество детей | L2: доля | N2: место | O2: городской | P2: доля | Q2: балл | R2: Республиканский | S2: доля | T2: балл | U2: Всероссийский | V2: доля | W2: балл | X2: Международный | Y2: доля | Z2: балл | AA2: балл | AB2: место | AC2: городской | AD2: доля | AE2: балл | AF2: Республиканский | AG2: доля | AH2: балл | AI2: Всероссийский | AJ2: доля | AK2: балл | AL2: Международный | AM2: доля | AN2: балл | AO2: балл | AP2: место | AQ2: городской | AR2: доля | AS2: балл | AT2: Республиканский | AU2: доля | AV2: балл | AW2: Всероссийский | AX2: доля | AY2: балл | AZ2: Международный | BA2: доля | BB2: балл | BC2: балл | BD2: место | BE2: Городской, республиканский | BF2: балл | BG2: Всероссийский | BH2: балл | BI2: Международный | BJ2: балл | BK2: балл | BL2: место | BM2: Учреждения | BN2: Педагогов | BO2: балл | BP2: место | BQ2: Наличие публичного отчета | BR2: Наличие финансового отчета | BS2: Наличие оперативной информации | BT2: балл | BU2: место | BV2: Налииче детского травматизма | BW2: Наличие взрослого травматизма | BX2: балл | BY2: место | BZ2: Кол-во детей-инвалидов, ОВЗ | CA2: доля | CB2: балл | CC2: Количество реализуемых адаптированных программ для детей с ОВЗ, детей-инвалидов | CD2: балл | CE2: балл | CF2: место | CG2: городской | CH2: доля | CI2: балл | CJ2: Республиканский | CK2: доля | CL2: балл | CM2: Всероссийский | CN2: доля | CO2: балл | CP2: Международный | CQ2: доля | CR2: балл | CS2: балл | CT2: место | CU2: НВП | CV2: 9 Мая | CW2: День защиты детей | CX2: Сабантуй | CY2: Большая перемена | CZ2: Открытие и закрытие олимпиад | DA2: Новый год | DB2: день города и РТ | DC2: Иные городские мероприятия | DD2: балл | DE2: Организация и проведение мероприятий самим учреждением (р., г., респ., вс.) | DF2: район балл | DG2: город балл | DH2: респ балл | DI2: всерос балл | DJ2: балл | DK2: место | DL2: Объем средств, привлеченных за счет оказания платных услуг | DM2: балл | DN2: место | DO2: Наличие жалоб | DP2: Наличие дисциплинарных взысканий | DQ2: балл | DR2: место | DS2: итоговые баллы | DU2: итоговое место
B4: МБУДО ЦДТ "Детская академия" | C4: 1552 | D4: =C4*100/I4 -> 57.52 | E4: 941 | F4: =E4*100/I4 -> 34.88 | G4: 205 | H4: =G4*100/I4 -> 7.60 | I4: =SUM(C4,E4,G4) -> 2698 | J4: 54 | K4: 35 | L4: =K4*100/J4 -> 65 | M4: 3 | N4: 1 | O4: 14 | P4: 25.00 | Q4: 9.00 | R4: 25 | S4: =R4*100/J4 -> 46.30 | T4: =S4*2 -> 92.59 | U4: 9 | V4: =U4*100/J4 -> 16.67 | W4: =V4*3 -> 50.00 | X4: 9 | Y4: =X4*100/J4 -> 16.67 | Z4: =Y4*3 -> 50.00 | AA4: =Q4+T4+W4+Z4 -> 202 | AB4: 2 | AC4: 32 | AD4: =AC4*100/J4 -> 59.26 | AE4: =AD4*2 -> 118.52 | AF4: 12 | AG4: =AF4*100/J4 -> 22.22 | AH4: =AG4*2 -> 44.44 | AI4: 23 | AJ4: =AI4*100/J4 -> 42.59 | AK4: =AJ4*3 -> 127.78 | AL4: 3 | AM4: =AL4*100/J4 -> 5.56 | AN4: =AM4*3 -> 16.67 | AO4: =AE4+AH4+AK4+AN4 -> 307 | AP4: 1 | AQ4: 4 | AR4: =AQ4*100/J4 -> 7.41 | AS4: =AR4*2 -> 14.81 | AT4: 3 | AU4: =AT4*100/J4 -> 5.56 | AV4: =AU4*2 -> 11.11 | AW4: 0 | AX4: =AW4*100/J4 -> 0.00 | AY4: =AX4*3 -> 0.00 | AZ4: 0 | BA4: =AZ4*100/J4 -> 0.00 | BB4: =BA4*3 -> 0.00 | BC4: =AS4+AV4+AY4+BB4 -> 26 | BD4: 3 | BE4: 0 | BF4: =BE4*2 -> 0 | BG4: 0 | BH4: =BG4*3 -> 0 | BI4: 0 | BJ4: =BI4*4 -> 0 | BK4: =BF4+BH4+BJ4 -> 0 | BL4: 1 | BM4: 1 | BN4: 2 | BO4: =(BM4+BN4)*2 -> 6 | BP4: 3 | BQ4: 1 | BR4: 1 | BS4: 1 | BT4: =BQ4+BR4+BS4 -> 3 | BU4: 1 | BV4: 0 | BW4: 0 | BX4: 0 | BY4: 1 | BZ4: 10 | CA4: =BZ4*100/I4 -> 0.3706449222 | CB4: 0 | CC4: 1 | CD4: 0 | CE4: =CB4+CD4 -> 0 | CF4: 5 | CG4: 137 | CH4: =CG4*100/I4 -> 5.077835434 | CI4: =CH4*2 -> 10.16 | CJ4: 99 | CK4: =CJ4*100/I4 -> 3.67 | CL4: =CK4*2 -> 7.34 | CM4: 115 | CN4: =CM4*100/I4 -> 4.26 | CO4: =CN4*3 -> 12.79 | CP4: 131 | CQ4: =CP4*100/I4 -> 4.86 | CR4: =CQ4*3 -> 14.57 | CS4: =CI4+CL4+CO4+CR4 -> 44.85 | CT4: 3 | CU4: 5 | CV4: 5 | CW4: 0 | CX4: 5 | CY4: 0 | CZ4: 0 | DA4: 5 | DB4: 5 | DC4: 1 | DD4: 0 | DF4: 2 | DG4: 14 | DH4: 3 | DI4: 0 | DK4: 12 | DL4: 2611401 | DM4: 4 | DN4: 1 | DO4: 5 | DP4: 5 | DQ4: =DP4+DO4 -> 10 | DR4: 1 | DS4: =M4+AA4+AO4+BC4+BK4+BO4+BT4+BX4+CS4+DJ4+DM4+DQ4 ->  | DT4: 1 | DU4: =N4+AB4+AP4+BD4+BL4+BU4+BY4+CF4+CT4+DK4+DN4+DR4 -> 32
